bitfinex-derivatives/quotes_BTCF0:USTF0_20241110
["timestamp","ask_amount","ask_price","bid_price","bid_amount"]
[1731275152686,0.062676,79715.0,79708.0,0.423481]
[1731275152979,0.04787687,79714.0,79708.0,0.423481]
[1731275153184,0.058,79716.0,79713.0,0.062677]
[1731275153382,0.10242572,79715.0,79708.0,0.3608]
[1731275153584,0.10242572,79714.0,79708.0,0.3608]
[1731275153882,0.10242572,79713.0,79708.0,0.3608]
[1731275154087,0.10242572,79712.0,79710.0,0.06268]
[1731275154276,0.10242572,79711.0,79710.0,0.06268]
[1731275154784,0.04789139,79711.0,79710.0,0.25131034]
[1731275156381,0.10249281,79711.0,79710.0,0.25131034]
[1731275160091,0.05458894,79711.0,79710.0,0.25131034]
[1731275160382,0.04789139,79711.0,79710.0,0.25131034]
[1731275160587,0.04789139,79711.0,79710.0,0.18863034]
[1731275160794,0.062674,79718.0,79710.0,0.18863034]
[1731275161088,0.10288201,79717.0,79713.0,0.062677]
[1731275161281,0.12130604,79722.0,79713.0,0.062677]
[1731275161282,0.10288201,79716.0,79713.0,0.062677]
[1731275161483,0.10288201,79715.0,79714.0,0.1889604]
[1731275161679,0.3608,79736.0,79714.0,0.1889604]
[1731275161878,0.0574,79737.0,79735.0,0.062659]
[1731275162085,0.0574,79737.0,79736.0,0.31986199]
[1731275162288,0.0574,79737.0,79736.0,0.50785081]
[1731275162289,0.16314668,79737.0,79736.0,0.50785081]
[1731275162881,0.16314668,79737.0,79728.0,0.062665]
[1731275163080,0.16314668,79737.0,79721.0,0.3608]
[1731275163081,0.3608,79729.0,79721.0,0.3608]
[1731275163286,0.42347,79722.0,79706.0,0.02509268]
[1731275163492,0.062681,79709.0,79699.0,0.3608]
[1731275163793,0.3608,79722.0,79698.0,0.062689]
[1731275163794,0.12130604,79701.0,79700.0,0.18851609]
[1731275163982,0.3608,79706.0,79700.0,0.18851609]
[1731275164178,0.04732204,79705.0,79703.0,0.00160962]
[1731275164375,0.12130604,79707.0,79701.0,0.19012627]
[1731275164376,0.17560604,79707.0,79701.0,0.19012627]
[1731275164586,0.062686,79702.0,79699.0,0.06296944]
[1731275164787,0.3608,79706.0,79699.0,0.06296944]
[1731275164987,0.062685,79703.0,79699.0,0.06296944]
[1731275165177,0.01495408,79705.0,79699.0,0.06296944]
[1731275165777,0.01495408,79705.0,79702.0,0.01803549]
[1731275166091,0.062685,79704.0,79702.0,0.00627321]
[1731275166789,0.01480398,79703.0,79702.0,0.00627321]
[1731275167895,0.06796986,79703.0,79702.0,0.00627321]
[1731275168393,0.06796986,79703.0,79702.0,0.00368382]
[1731275170193,0.01480398,79703.0,79702.0,0.00368382]
[1731275170389,0.39120398,79703.0,79695.0,0.00015329]
[1731275170592,0.54479704,79696.0,79695.0,0.00015329]
[1731275170896,0.55960102,79696.0,79695.0,0.00015329]
[1731275171083,0.43829498,79696.0,79695.0,0.00015329]
[1731275171287,0.49061129,79696.0,79695.0,0.00015329]
[1731275172289,0.42792029,79696.0,79695.0,0.00015329]
[1731275172485,0.06712029,79696.0,79695.0,0.00015329]
[1731275172993,0.01480398,79696.0,79695.0,0.00015329]
[1731275173392,0.062689,79699.0,79695.0,0.00015329]
[1731275173892,0.062684,79705.0,79695.0,0.00015329]
[1731275174095,0.01537247,79704.0,79695.0,0.00015329]
[1731275174298,0.01537247,79703.0,79695.0,0.00015329]
[1731275174597,0.3608,79699.0,79695.0,0.00015329]
[1731275174789,0.06269,79697.0,79695.0,0.00015329]
[1731275174988,0.01537247,79696.0,79695.0,0.00015329]
[1731275175893,0.01537247,79696.0,79695.0,8.55e-05]
[1731275176392,0.0627,79684.0,79683.0,0.00188184]
[1731275176597,0.43887247,79684.0,79683.0,0.00188184]
[1731275177006,0.55707247,79684.0,79683.0,0.00188184]
[1731275177299,0.55716411,79684.0,79683.0,0.00188184]
[1731275177490,0.55716411,79684.0,79678.0,0.00131]
[1731275177491,0.062704,79679.0,79678.0,0.00131]
[1731275177801,0.19938251,79679.0,79678.0,0.00131]
[1731275177991,0.57590251,79679.0,79678.0,0.00131]
[1731275178393,0.13667851,79679.0,79661.0,0.062718]
[1731275178599,0.3608,79664.0,79656.0,0.00161606]
[1731275178804,0.3608,79673.0,79662.0,0.18867967]
[1731275179102,0.062715,79665.0,79659.0,0.18893536]
[1731275179290,0.01578445,79664.0,79663.0,0.00013197]
[1731275180007,0.07850045,79664.0,79663.0,0.00013197]
[1731275180892,0.63664748,79664.0,79663.0,0.00013197]
[1731275181092,0.45510045,79664.0,79663.0,0.00013197]
[1731275181600,0.07850045,79664.0,79663.0,0.00013197]
[1731275182496,0.01578445,79664.0,79663.0,0.00013197]
[1731275182894,0.01578445,79664.0,79663.0,0.1885007]
[1731275183189,0.01578445,79664.0,79663.0,0.00013197]
[1731275184598,0.39238445,79664.0,79650.0,0.00160662]
[1731275184806,0.062724,79654.0,79650.0,0.00160662]
[1731275185496,0.062724,79654.0,79652.0,0.06203807]
[1731275186300,0.06272,79660.0,79652.0,0.06203807]
[1731275186496,0.06272,79660.0,79654.0,0.062724]
[1731275187802,0.06272,79660.0,79658.0,0.062721]
[1731275188106,0.3608,79665.0,79660.0,0.062719]
[1731275188399,0.3608,79665.0,79661.0,0.062718]
[1731275188705,0.3608,79665.0,79663.0,0.062717]
[1731275188901,0.3608,79665.0,79656.0,0.54963959]
[1731275189102,0.423515,79665.0,79656.0,0.3608]
[1731275189308,0.1114,79681.0,79664.0,0.3608]
[1731275189510,0.062711,79671.0,79664.0,0.3608]
[1731275189807,0.062711,79671.0,79666.0,0.062714]
[1731275190105,0.062711,79671.0,79667.0,0.18746911]
[1731275191409,0.1114,79681.0,79667.0,0.18746911]
[1731275191612,0.06459423,79670.0,79667.0,0.01484489]
[1731275191808,0.06459423,79670.0,79655.0,0.35204973]
[1731275192314,0.00188323,79670.0,79668.0,0.062713]
[1731275192906,0.00188323,79670.0,79663.0,0.34632808]
[1731275193309,0.00188323,79670.0,79669.0,0.18703339]
[1731275193506,0.3608,79675.0,79668.0,0.062713]
[1731275193709,0.3594238,79675.0,79673.0,0.062708]
[1731275193903,0.3594238,79675.0,79670.0,0.18154703]
[1731275193904,9.164e-05,79684.0,79683.0,0.062701]
[1731275194106,9.164e-05,79684.0,79683.0,0.423501]
[1731275194306,9.164e-05,79684.0,79683.0,0.61053894]
[1731275194610,9.164e-05,79684.0,79683.0,0.24973894]
[1731275195612,9.164e-05,79684.0,79674.0,0.1096]
[1731275196011,9.164e-05,79684.0,79675.0,0.18755094]
[1731275196402,0.3608,79678.0,79670.0,0.3608]
[1731275196608,0.062711,79671.0,79670.0,0.06315334]
[1731275196809,0.062711,79671.0,79669.0,0.00160845]
[1731275197715,0.423511,79671.0,79669.0,0.00160845]
[1731275197910,0.423511,79671.0,79668.0,0.06181019]
[1731275198103,0.423511,79671.0,79664.0,0.062715]
[1731275198311,0.062712,79670.0,79664.0,0.062715]
[1731275198619,0.062712,79670.0,79664.0,0.25000939]
[1731275199209,0.04457689,79669.0,79665.0,0.062715]
[1731275199411,0.3608,79671.0,79664.0,0.18729439]
[1731275199615,0.3608,79671.0,79666.0,0.062714]
[1731275200007,0.3608,79671.0,79669.0,0.062712]
[1731275200518,0.3608,79671.0,79670.0,0.18856817]
[1731275200716,0.40578267,79671.0,79665.0,0.06339693]
[1731275200915,0.04494656,79670.0,79669.0,0.18856817]
[1731275201119,0.062704,79680.0,79673.0,0.062708]
[1731275201319,0.04496765,79679.0,79673.0,0.423508]
[1731275201624,0.04496765,79678.0,79674.0,0.18923962]
[1731275201820,9.164e-05,79684.0,79674.0,0.18923962]
[1731275201821,0.04496765,79677.0,79676.0,0.062706]
[1731275202214,0.062702,79682.0,79676.0,0.25186286]
[1731275202422,0.04496765,79681.0,79676.0,0.25186286]
[1731275202827,0.04496765,79681.0,79676.0,0.18915686]
[1731275203124,9.164e-05,79684.0,79679.0,0.062704]
[1731275203324,0.04556484,79683.0,79681.0,0.062702]
[1731275203526,0.04556484,79682.0,79681.0,0.062702]
[1731275203922,0.04556484,79682.0,79675.0,0.3608]
[1731275204123,9.164e-05,79684.0,79675.0,0.3608]
[1731275204124,0.04556484,79681.0,79675.0,0.3608]
[1731275204324,9.164e-05,79684.0,79676.0,0.18924646]
[1731275204525,0.045459,79683.0,79677.0,0.062705]
[1731275204827,0.045459,79682.0,79678.0,0.18924646]
[1731275205128,0.36089164,79684.0,79678.0,0.18924646]
[1731275205129,0.108162,79681.0,79678.0,0.18924646]
[1731275205430,0.062703,79681.0,79676.0,0.18913549]
[1731275205635,9.164e-05,79684.0,79676.0,0.18913549]
[1731275205928,9.164e-05,79684.0,79675.0,0.42348766]
[1731275205929,0.062703,79680.0,79679.0,0.18913549]
[1731275206134,0.062703,79680.0,79677.0,0.18904862]
[1731275206328,0.062703,79680.0,79674.0,0.1085]
[1731275206329,0.062703,79680.0,79676.0,0.18904862]
[1731275206530,0.062703,79680.0,79678.0,0.18904862]
[1731275207027,0.062703,79680.0,79674.0,0.23268961]
[1731275207232,0.062703,79680.0,79679.0,0.18871956]
[1731275207424,0.04516191,79680.0,79676.0,0.18871956]
[1731275207620,9.164e-05,79684.0,79674.0,0.23268961]
[1731275207621,0.062704,79679.0,79674.0,0.23268961]
[1731275207831,0.3608,79678.0,79674.0,0.23268961]
[1731275208028,0.3608,79678.0,79677.0,0.18889949]
[1731275208527,0.3608,79678.0,79674.0,0.23268961]
[1731275208734,0.3608,79678.0,79677.0,0.18889949]
[1731275208931,0.3608,79678.0,79676.0,0.18889949]
[1731275208932,0.40592033,79678.0,79676.0,0.18889949]
[1731275209132,0.04512033,79677.0,79676.0,0.18889949]
[1731275209438,0.04512033,79677.0,79676.0,0.18706291]
[1731275209833,0.04512033,79677.0,79674.0,0.17828961]
[1731275209834,0.04512033,79677.0,79675.0,0.18706291]
[1731275210035,0.04533294,79676.0,79674.0,0.17828961]
[1731275210236,0.062704,79679.0,79674.0,0.17828961]
[1731275210427,0.04533598,79678.0,79676.0,0.18829023]
[1731275210734,0.04522841,79677.0,79674.0,0.17828961]
[1731275211038,0.063424,79679.0,79677.0,0.18931425]
[1731275211239,0.062704,79679.0,79676.0,0.18931425]
[1731275211433,0.062704,79679.0,79675.0,0.062707]
[1731275211630,0.062704,79679.0,79678.0,0.18931425]
[1731275211933,0.062704,79679.0,79676.0,0.18931425]
[1731275212137,0.423504,79679.0,79678.0,0.18895577]
[1731275212336,0.46873338,79679.0,79677.0,0.18895577]
[1731275212636,0.46873338,79679.0,79675.0,0.062707]
[1731275212637,0.423504,79679.0,79678.0,0.18895577]
[1731275212935,0.46874374,79679.0,79675.0,0.062707]
[1731275213136,0.46874374,79679.0,79678.0,0.18798123]
[1731275213137,0.423504,79679.0,79678.0,0.18798123]
[1731275213336,0.46878968,79679.0,79678.0,0.18798123]
[1731275213633,0.423504,79679.0,79676.0,0.062706]
[1731275213836,0.062704,79679.0,79678.0,0.18798123]
[1731275214030,0.062704,79679.0,79677.0,0.24971448]
[1731275214233,0.062704,79679.0,79678.0,0.18700948]
[1731275214628,0.062704,79679.0,79677.0,0.062705]
[1731275215034,0.062704,79679.0,79678.0,0.18737715]
[1731275216142,0.10816301,79679.0,79678.0,0.18737715]
[1731275216337,0.062704,79679.0,79678.0,0.18737715]
[1731275216532,0.10811462,79679.0,79678.0,0.18737715]
[1731275216842,0.062704,79679.0,79678.0,0.18737715]
[1731275218641,9.164e-05,79684.0,79678.0,0.18737715]
[1731275218940,0.04542274,79683.0,79678.0,0.18737715]
[1731275219143,0.04542274,79682.0,79678.0,0.18737715]
[1731275219347,0.04542274,79681.0,79678.0,0.25008215]
[1731275219644,0.04542274,79681.0,79676.0,0.1209647]
[1731275219645,9.164e-05,79684.0,79677.0,0.18822811]
[1731275219833,0.04556587,79683.0,79682.0,0.062702]
[1731275220036,9.164e-05,79684.0,79682.0,0.062702]
[1731275220344,9.164e-05,79684.0,79683.0,0.18948051]
[1731275220643,9.164e-05,79684.0,79682.0,0.062702]
[1731275220843,9.164e-05,79684.0,79683.0,0.18948051]
[1731275221739,0.04599457,79684.0,79683.0,0.18948051]
[1731275222145,0.3608,79697.0,79683.0,0.18948051]
[1731275222333,0.3608,79697.0,79696.0,0.1209647]
[1731275222529,0.3608,79697.0,79696.0,0.1836557]
[1731275223247,0.36094262,79697.0,79696.0,0.1836557]
[1731275223436,0.36094262,79697.0,79696.0,0.062691]
[1731275224146,0.36094262,79697.0,79696.0,0.12438862]
[1731275225145,0.41337499,79697.0,79696.0,0.12438862]
[1731275225538,0.41337499,79697.0,79696.0,0.06169762]
[1731275225742,0.41337499,79697.0,79689.0,0.3608]
[1731275225936,0.05243237,79696.0,79680.0,0.00188249]
[1731275226146,0.062696,79690.0,79686.0,0.062699]
[1731275226339,0.423497,79688.0,79686.0,0.18861565]
[1731275226646,0.423497,79688.0,79681.0,0.25131865]
[1731275226647,0.062698,79687.0,79681.0,0.062703]
[1731275226947,0.062699,79686.0,79681.0,0.062703]
[1731275227145,0.3608,79688.0,79680.0,0.06367424]
[1731275227340,0.062702,79682.0,79680.0,0.06367424]
[1731275227742,0.423497,79688.0,79680.0,0.06367424]
[1731275228345,0.423497,79688.0,79684.0,0.0627]
[1731275229749,0.062698,79687.0,79684.0,0.0627]
[1731275230150,0.04563657,79686.0,79684.0,0.0627]
[1731275230451,0.36094262,79697.0,79696.0,0.062691]
[1731275230752,0.45971425,79697.0,79696.0,0.062691]
[1731275230951,0.09891425,79697.0,79696.0,0.062691]
[1731275231148,0.3608,79714.0,79696.0,0.18739615]
[1731275231343,0.0998358,79713.0,79710.0,0.1209647]
[1731275231550,0.0998358,79712.0,79711.0,0.062679]
[1731275231854,0.05315538,79712.0,79711.0,0.062679]
[1731275232246,0.05315538,79712.0,79704.0,0.1209647]
[1731275232247,0.0532735,79712.0,79704.0,0.1209647]
[1731275232448,0.0998358,79711.0,79704.0,0.1209647]
[1731275232756,0.0998358,79710.0,79705.0,0.18856813]
[1731275233050,0.0998358,79709.0,79705.0,0.18856813]
[1731275233259,0.00011812,79712.0,79705.0,0.18856813]
[1731275233260,0.0998358,79708.0,79705.0,0.18856813]
[1731275233457,0.00011812,79712.0,79707.0,0.062682]
[1731275233652,0.10076849,79711.0,79707.0,0.062682]
[1731275233856,0.10076849,79710.0,79708.0,0.1166378]
[1731275234057,0.10076849,79709.0,79708.0,0.1166378]
[1731275235954,0.37071164,79714.0,79708.0,0.1166378]
[1731275236254,0.1209647,79709.0,79708.0,0.1166378]
[1731275236460,0.062686,79703.0,79700.0,0.062688]
[1731275236646,0.062686,79703.0,79695.0,0.3608]
[1731275236647,0.30803464,79714.0,79697.0,0.1209647]
[1731275236851,0.11,79724.0,79716.0,0.062675]
[1731275237054,0.05482036,79723.0,79712.0,0.4817647]
[1731275237253,7.568e-05,79723.0,79721.0,0.062671]
[1731275237555,0.0546,79733.0,79725.0,0.062668]
[1731275237753,0.05531125,79732.0,79725.0,0.062668]
[1731275237952,0.05531125,79732.0,79726.0,0.18868076]
[1731275238549,0.05531125,79731.0,79726.0,0.18868076]
[1731275239252,0.062666,79728.0,79726.0,0.18868076]
[1731275239452,0.05531125,79731.0,79721.0,0.062671]
[1731275239661,0.062671,79722.0,79715.0,0.062676]
[1731275239957,0.062671,79722.0,79716.0,0.062675]
[1731275240259,0.062671,79722.0,79717.0,0.18832473]
[1731275240458,0.062672,79720.0,79717.0,0.18832473]
[1731275240851,0.3608,79722.0,79714.0,0.06289656]
[1731275241059,0.062676,79716.0,79713.0,0.02509338]
[1731275241357,0.062677,79714.0,79711.0,0.062678]
[1731275243349,0.062677,79714.0,79709.0,0.02508909]
[1731275243854,0.062679,79712.0,79710.0,0.18799707]
[1731275244255,0.1769647,79719.0,79705.0,0.42711098]
[1731275244455,0.062678,79713.0,79705.0,0.42647098]
[1731275244651,0.062679,79712.0,79705.0,0.42647098]
[1731275244857,0.1769647,79719.0,79705.0,0.42647098]
[1731275245354,0.056,79719.0,79705.0,0.42647098]
[1731275245559,0.10547065,79718.0,79705.0,0.42647098]
[1731275246260,0.3608,79715.0,79705.0,0.42647098]
[1731275246556,0.0505,79714.0,79705.0,0.42647098]
[1731275247645,0.0505,79714.0,79705.0,0.424589]
[1731275250560,0.10521541,79713.0,79705.0,0.424589]
[1731275251267,0.3608,79708.0,79705.0,0.063789]
[1731275251450,0.3608,79708.0,79698.0,0.00158117]
[1731275251451,0.31575544,79707.0,79698.0,0.00158117]
[1731275251657,0.3608,79700.0,79698.0,0.00158117]
[1731275251858,0.15766892,79699.0,79698.0,0.00158117]
[1731275252959,0.15766892,79699.0,79696.0,0.00012593]
[1731275253262,0.10456892,79698.0,79696.0,0.00012593]
[1731275253459,0.21092,79707.0,79696.0,0.00012593]
[1731275253460,0.10456892,79697.0,79696.0,0.00012593]
[1731275253667,0.04901811,79697.0,79696.0,0.00012593]
[1731275253856,0.0534,79707.0,79696.0,0.18767371]
[1731275254062,0.04877276,79706.0,79696.0,0.18767371]
[1731275254257,0.0534,79707.0,79696.0,0.18767371]
[1731275254258,0.04877276,79705.0,79696.0,0.18767371]
[1731275254457,0.04877276,79704.0,79696.0,0.00012593]
[1731275254661,0.04877276,79703.0,79696.0,0.00012593]
[1731275254867,0.0534,79707.0,79696.0,0.00012593]
[1731275254868,0.04877276,79702.0,79696.0,0.00012593]
[1731275255065,0.04877276,79701.0,79696.0,0.00012593]
[1731275255265,0.10405754,79700.0,79696.0,0.00012593]
[1731275255464,0.10405754,79699.0,79696.0,0.00012593]
[1731275255667,0.04877276,79698.0,79696.0,0.00012593]
[1731275255857,0.04877276,79697.0,79696.0,0.00012593]
[1731275256274,0.114528,79714.0,79696.0,0.18913511]
[1731275256467,0.10494498,79709.0,79696.0,0.18913511]
[1731275256665,0.10494498,79709.0,79696.0,0.31009981]
[1731275256966,0.04906933,79708.0,79697.0,0.1209647]
[1731275257170,0.3608,79719.0,79697.0,0.1209647]
[1731275257369,0.04928568,79711.0,79703.0,0.1209647]
[1731275257565,0.04928568,79710.0,79704.0,0.0495]
[1731275257768,0.3608,79719.0,79704.0,0.23798551]
[1731275257968,0.10575549,79718.0,79704.0,0.23798551]
[1731275259672,0.10575549,79718.0,79704.0,0.59878551]
[1731275259868,0.10575549,79718.0,79704.0,0.23798551]
[1731275261876,0.17243812,79718.0,79704.0,0.23798551]
[1731275262177,0.17243812,79718.0,79704.0,0.30003284]
[1731275263574,0.1209647,79710.0,79704.0,0.25053284]
[1731275263779,0.1209647,79710.0,79704.0,0.17995055]
[1731275263780,0.10575549,79709.0,79704.0,0.17995055]
[1731275264073,0.10575549,79708.0,79693.0,0.36238178]
[1731275264275,0.1209647,79704.0,79693.0,0.36238178]
[1731275264471,0.15765549,79703.0,79697.0,0.18777869]
[1731275264669,0.10575549,79702.0,79697.0,0.18777869]
[1731275264971,0.10575549,79701.0,79697.0,0.18777869]
[1731275265186,0.10575549,79700.0,79697.0,0.18777869]
[1731275265370,0.0514,79707.0,79697.0,0.21287367]
[1731275265371,0.10575549,79699.0,79697.0,0.21287367]
[1731275265568,0.10575549,79698.0,79697.0,0.21287367]
[1731275268976,0.04946347,79698.0,79697.0,0.21287367]
[1731275271078,0.1209647,79704.0,79697.0,0.21287367]
[1731275275273,0.10474818,79703.0,79697.0,0.21287367]
[1731275275490,0.10474818,79703.0,79697.0,0.14228524]
[1731275280093,0.4824847,79704.0,79697.0,0.14228524]
[1731275280094,0.04897731,79702.0,79697.0,0.14228524]
[1731275280383,0.4824847,79704.0,79697.0,0.14228524]
[1731275280384,0.04897731,79701.0,79697.0,0.14228524]
[1731275280588,0.04897731,79700.0,79697.0,0.14228524]
[1731275280776,0.04897731,79699.0,79697.0,0.11719026]
[1731275280971,0.10476958,79698.0,79696.0,0.06406801]
[1731275281187,0.22550274,79697.0,79696.0,0.06342801]
[1731275281385,0.22550274,79697.0,79696.0,0.00012593]
[1731275282285,0.10453804,79697.0,79696.0,0.00012593]
[1731275282686,0.10453804,79697.0,79696.0,8.506e-05]
[1731275283682,0.10457891,79697.0,79696.0,8.506e-05]
[1731275284791,0.22554361,79697.0,79696.0,8.506e-05]
[1731275285386,0.22554361,79697.0,79688.0,0.3608]
[1731275285387,0.22554361,79697.0,79688.0,0.35281954]
[1731275285590,0.1209647,79690.0,79688.0,0.35281954]
[1731275285896,0.10453804,79689.0,79682.0,0.042]
[1731275286098,0.10453804,79688.0,79682.0,0.1043568]
[1731275286288,0.10453804,79687.0,79683.0,0.18848259]
[1731275286494,0.04897731,79686.0,79684.0,9.613e-05]
[1731275286693,0.04897731,79685.0,79684.0,9.613e-05]
[1731275287086,0.04897731,79685.0,79684.0,0.18857872]
[1731275287288,4.087e-05,79697.0,79684.0,0.21367705]
[1731275287491,0.10353502,79696.0,79692.0,0.3608]
[1731275287701,4.087e-05,79697.0,79692.0,0.3608]
[1731275287702,0.04841007,79695.0,79692.0,0.3608]
[1731275287885,0.04841007,79694.0,79693.0,0.18904704]
[1731275288089,4.087e-05,79697.0,79693.0,0.18904704]
[1731275288285,0.04841007,79696.0,79693.0,0.37772179]
[1731275288495,0.3608,79711.0,79695.0,0.1209647]
[1731275288700,0.04903979,79710.0,79700.0,0.3608]
[1731275288895,0.10521132,79709.0,79701.0,0.0425]
[1731275289205,0.10521132,79708.0,79701.0,0.23041411]
[1731275289395,0.12284685,79717.0,79701.0,0.23041411]
[1731275289396,0.04903979,79707.0,79701.0,0.23041411]
[1731275289607,8.506e-05,79710.0,79701.0,0.23041411]
[1731275289917,0.04929627,79709.0,79701.0,0.23041411]
[1731275290218,0.04929627,79708.0,79701.0,0.29318191]
[1731275290417,8.506e-05,79710.0,79707.0,0.3608]
[1731275290818,8.506e-05,79710.0,79708.0,0.18723609]
[1731275292622,0.1209647,79709.0,79708.0,0.18723609]
[1731275293016,0.1209647,79709.0,79707.0,0.18937173]
[1731275293219,0.1209647,79709.0,79708.0,0.18826509]
[1731275293616,0.1209647,79709.0,79701.0,0.1052678]
[1731275293817,0.1209647,79709.0,79708.0,0.18826509]
[1731275294017,0.1209647,79709.0,79703.0,0.18826509]
[1731275294219,0.1209647,79709.0,79701.0,0.1052678]
[1731275294414,0.1209647,79709.0,79708.0,0.18712299]
[1731275294722,0.22550786,79709.0,79703.0,0.18712299]
[1731275294915,0.04888145,79708.0,79701.0,0.1052678]
[1731275295116,0.10455167,79708.0,79705.0,0.18712299]
[1731275295319,0.10455167,79708.0,79704.0,0.18712299]
[1731275295519,0.10455167,79708.0,79701.0,0.1052678]
[1731275295520,0.10455167,79708.0,79706.0,0.18789371]
[1731275295722,0.10455167,79708.0,79707.0,0.02509959]
[1731275296118,0.10455167,79708.0,79707.0,0.2129933]
[1731275296518,0.1209647,79712.0,79707.0,0.2129933]
[1731275296715,0.10479305,79711.0,79707.0,0.2129933]
[1731275297015,0.05579476,79710.0,79707.0,0.2129933]
[1731275297223,0.1209647,79713.0,79707.0,0.2129933]
[1731275299020,0.05528278,79712.0,79707.0,0.2129933]
[1731275299225,0.05528278,79711.0,79707.0,0.2129933]
[1731275299427,0.05528278,79710.0,79707.0,0.2129933]
[1731275299622,0.1209647,79713.0,79707.0,0.2129933]
[1731275299825,0.05538394,79712.0,79707.0,0.2129933]
[1731275300026,0.1209647,79713.0,79707.0,0.2129933]
[1731275300027,0.05538394,79711.0,79707.0,0.2129933]
[1731275300227,0.05538394,79710.0,79707.0,0.2129933]
[1731275300528,0.1209647,79713.0,79707.0,0.2129933]
[1731275300727,0.05540474,79712.0,79707.0,0.2129933]
[1731275300927,0.05540474,79711.0,79707.0,0.2129933]
[1731275301225,0.05539756,79710.0,79700.0,0.3608]
[1731275301431,0.1209647,79704.0,79700.0,0.3608]
[1731275301615,0.1209647,79704.0,79702.0,0.18699472]
[1731275301821,0.1209647,79710.0,79702.0,0.18699472]
[1731275304322,0.1209647,79703.0,79702.0,0.18699472]
[1731275304632,0.10309028,79703.0,79698.0,0.00157984]
[1731275304831,0.18899028,79702.0,79688.0,0.3608]
[1731275305020,0.1209647,79689.0,79688.0,0.3608]
[1731275305218,0.16942729,79689.0,79688.0,0.4247359]
[1731275305417,0.22350459,79689.0,79688.0,0.4247359]
[1731275305629,0.22350459,79689.0,79688.0,0.0639359]
[1731275305824,0.22350459,79689.0,79681.0,0.00188215]
[1731275306022,0.10253989,79688.0,79684.0,0.06157296]
[1731275306225,0.10253989,79687.0,79684.0,9.613e-05]
[1731275306527,0.10253989,79686.0,79684.0,9.613e-05]
[1731275306726,0.1209647,79689.0,79684.0,9.613e-05]
[1731275306727,0.14533989,79685.0,79684.0,9.613e-05]
[1731275307128,0.09126259,79685.0,79684.0,9.613e-05]
[1731275307330,0.46774259,79685.0,79684.0,9.613e-05]
[1731275307532,0.52091905,79685.0,79684.0,9.613e-05]
[1731275307930,0.14443905,79685.0,79684.0,9.613e-05]
[1731275308132,0.09126259,79685.0,79684.0,9.613e-05]
[1731275310933,0.0428,79685.0,79684.0,9.613e-05]
[1731275314539,0.09019076,79685.0,79684.0,9.613e-05]
[1731275315434,0.0428,79685.0,79684.0,9.613e-05]
[1731275316637,0.08988207,79685.0,79684.0,9.613e-05]
[1731275316838,0.13588207,79685.0,79684.0,9.613e-05]
[1731275317037,0.062718,79670.0,79669.0,0.00157711]
[1731275317236,0.1836827,79670.0,79669.0,0.00157711]
[1731275317436,0.1836827,79670.0,79669.0,0.06367824]
[1731275317738,0.1836827,79670.0,79669.0,0.00157711]
[1731275318237,0.06281413,79670.0,79669.0,0.00157711]
[1731275318638,9.613e-05,79670.0,79669.0,0.00157711]
[1731275318938,9.613e-05,79670.0,79669.0,0.37585289]
[1731275319128,9.613e-05,79670.0,79669.0,0.46725289]
[1731275319839,9.613e-05,79670.0,79669.0,0.52927244]
[1731275320742,0.08786,79671.0,79669.0,0.93564347]
[1731275320932,0.08786,79671.0,79670.0,0.19938185]
[1731275321133,0.36268283,79686.0,79685.0,0.062706]
[1731275324432,0.00188283,79686.0,79685.0,0.062706]
[1731275325337,0.00188283,79686.0,79685.0,0.12390049]
[1731275328338,0.00188283,79686.0,79685.0,0.06119449]
[1731275328538,0.00188283,79686.0,79677.0,0.3608]
[1731275328747,0.00188283,79686.0,79685.0,0.062706]
[1731275329437,0.04986683,79686.0,79685.0,0.062706]
[1731275330038,0.05007082,79686.0,79685.0,0.062706]
[1731275331445,0.04818799,79686.0,79685.0,0.062706]
[1731275331843,0.062707,79684.0,79680.0,0.06271]
[1731275332047,0.1209647,79682.0,79680.0,0.06271]
[1731275332239,0.04818799,79681.0,79680.0,0.06271]
[1731275333748,0.04818799,79681.0,79675.0,0.3608]
[1731275334049,0.062711,79679.0,79675.0,0.423513]
[1731275334243,0.062712,79677.0,79675.0,0.062713]
[1731275334445,0.10260585,79676.0,79675.0,0.062713]
[1731275334744,0.10187388,79676.0,79675.0,0.062713]
[1731275336147,0.04763337,79676.0,79675.0,0.062713]
[1731275336547,0.062714,79674.0,79671.0,0.062716]
[1731275336843,0.0456,79677.0,79666.0,0.06272]
[1731275336844,0.062718,79670.0,79666.0,0.06272]
[1731275337142,0.062718,79670.0,79660.0,0.4076]
[1731275337143,0.10152604,79669.0,79667.0,0.062719]
[1731275337345,0.062715,79674.0,79667.0,0.062719]
[1731275337346,0.04763337,79668.0,79667.0,0.062719]
[1731275337942,0.04763337,79668.0,79667.0,0.423519]
[1731275338254,0.04763337,79668.0,79667.0,0.35290278]
[1731275338844,0.04763337,79668.0,79667.0,0.062719]
[1731275339241,0.04763337,79668.0,79667.0,0.423519]
[1731275339441,0.3608,79678.0,79667.0,0.54914533]
[1731275339651,0.04742525,79677.0,79676.0,0.062713]
[1731275341243,0.04742525,79677.0,79668.0,0.0437]
[1731275341439,0.04742525,79676.0,79668.0,0.062719]
[1731275341647,0.04742525,79676.0,79673.0,0.062715]
[1731275341851,0.04742525,79676.0,79674.0,0.062714]
[1731275342238,0.04742525,79676.0,79667.0,0.3608]
[1731275342445,0.00072,79678.0,79677.0,0.062712]
[1731275342746,0.0422,79688.0,79674.0,0.3608]
[1731275342747,0.025138,79675.0,79674.0,0.3608]
[1731275342957,0.025138,79675.0,79674.0,0.39219148]
[1731275343140,0.3228847,79698.0,79686.0,0.062705]
[1731275343141,0.2292607,79698.0,79686.0,0.062705]
[1731275343343,0.16236927,79687.0,79686.0,0.062705]
[1731275343547,0.16241184,79687.0,79686.0,0.62692398]
[1731275343749,0.11399,79687.0,79686.0,0.83041566]
[1731275343947,0.0425,79704.0,79686.0,0.83041566]
[1731275343948,0.0425,79704.0,79691.0,0.062701]
[1731275344148,0.1209647,79711.0,79691.0,0.07289656]
[1731275344348,0.1209647,79711.0,79691.0,0.63707554]
[1731275344553,0.1209647,79711.0,79691.0,0.65042175]
[1731275344751,0.1209647,79711.0,79691.0,0.57594441]
[1731275344952,0.1209647,79711.0,79701.0,0.062693]
[1731275344953,0.062687,79709.0,79701.0,0.062693]
[1731275345154,0.3608,79706.0,79701.0,0.062693]
[1731275345450,0.062691,79704.0,79693.0,0.3608]
[1731275345649,0.1050929,79703.0,79693.0,0.3608]
[1731275345843,0.062691,79704.0,79697.0,0.062696]
[1731275345844,0.10487791,79702.0,79697.0,0.062696]
[1731275346047,0.062691,79704.0,79697.0,0.062696]
[1731275346048,0.04913849,79701.0,79697.0,0.062696]
[1731275346250,0.062691,79704.0,79697.0,0.062696]